bitfinex/quotes_SOLUSD_20250421
["timestamp","ask_amount","ask_price","bid_price","bid_amount"]
[1745249729052,20.0,138.92,138.91,263.02]
[1745249729240,20.0,138.92,138.91,263.49]
[1745249729454,20.0,138.92,138.91,282.13964886]
[1745249730481,20.0,138.92,138.91,362.83964886]
[1745249731163,20.0,138.92,138.91,405.98964886]
[1745249732646,26.0,138.92,138.91,405.98964886]
[1745249732845,26.0,138.92,138.91,406.13181043]
[1745249733458,20.0,138.96,138.95,19.11964886]
[1745249733659,20.0,138.96,138.94,0.47]
[1745249733953,20.0,138.96,138.95,0.47]
[1745249734174,20.0,138.96,138.94,0.47]
[1745249734479,20.0,138.96,138.95,0.47]
[1745249735257,20.0,138.96,138.94,0.47]
[1745249735657,20.0,138.96,138.95,0.47]
[1745249735976,20.0,138.96,138.94,0.47]
[1745249736181,46.0,138.94,138.93,0.47]
[1745249736372,46.0,138.94,138.92,0.47]
[1745249736576,46.0,138.94,138.93,0.47]
[1745249737008,46.0,138.94,138.92,0.47]
[1745249737976,20.0,138.92,138.91,362.83964886]
[1745249738167,20.0,138.92,138.91,263.49]
[1745249738481,20.0,138.92,138.91,263.02]
[1745249738675,46.0,138.92,138.91,263.02]
[1745249738863,20.0,138.92,138.91,263.02]
[1745249739060,46.0,138.92,138.91,263.02]
[1745249739882,20.0,138.92,138.91,263.02]
[1745249740964,46.0,138.92,138.91,263.02]
[1745249741163,20.0,138.92,138.91,263.02]
[1745249742259,20.14216157,138.92,138.91,263.02]
[1745249742768,20.14216157,138.92,138.91,15.9]
[1745249742769,46.14216157,138.92,138.91,15.9]
[1745249742964,28.28196157,138.92,138.91,15.9]
[1745249743172,46.0,138.89,138.88,0.063]
[1745249743371,46.14216157,138.89,138.88,0.063]
[1745249744956,46.0,138.89,138.88,0.063]
[1745249745357,46.0,138.89,138.88,0.533]
[1745249745660,46.0,138.89,138.88,0.063]
[1745249749664,46.65255111,138.89,138.88,0.063]
[1745249750475,46.79471268,138.89,138.88,0.063]
[1745249750790,61.58857022,138.89,138.88,0.063]
[1745249752069,54.34567961,138.89,138.88,0.063]
[1745249753075,20.0,138.86,138.85,16.433]
[1745249754078,20.0,138.86,138.85,15.963]
[1745249755184,20.0,138.86,138.85,97.133]
[1745249755767,20.0,138.86,138.85,158.93264886]
[1745249756079,20.0,138.88,138.87,0.47]
[1745249756791,20.0,138.88,138.87,19.11964886]
[1745249758090,20.0,138.88,138.87,0.47]
[1745249758287,20.0,138.88,138.86,0.47]
[1745249758995,46.0,138.86,138.85,16.433]
[1745249759182,46.0,138.86,138.85,15.963]
[1745249759519,46.0,138.86,138.85,16.433]
[1745249759872,46.0,138.86,138.85,15.963]
[1745249760193,46.0,138.86,138.85,16.433]
[1745249760385,46.0,138.86,138.85,15.963]
[1745249760694,46.14216157,138.86,138.85,15.963]
[1745249763806,46.14216157,138.86,138.85,0.063]
[1745249763976,58.9831685,138.86,138.85,0.063]
[1745249764587,58.9831685,138.86,138.82,0.063]
[1745249764588,20.0,138.83,138.82,0.063]
[1745249764787,20.14216157,138.83,138.82,0.063]
[1745249764994,20.0,138.83,138.82,0.063]
[1745249765877,20.14216157,138.83,138.82,0.063]
[1745249766076,21.81152468,138.83,138.82,0.063]
[1745249766276,28.34567961,138.83,138.82,0.063]
[1745249766689,34.65253161,138.83,138.82,0.063]
[1745249767199,20.14216157,138.81,138.8,0.063]
[1745249767382,20.67216157,138.81,138.8,0.063]
[1745249767576,36.11857022,138.81,138.8,0.063]
[1745249767782,35.58857022,138.81,138.8,0.063]
[1745249767984,65.58857022,138.81,138.8,0.063]
[1745249768400,0.67216157,138.8,138.79,0.063]
[1745249768594,7.91505218,138.8,138.79,0.063]
[1745249768789,16.11857022,138.8,138.79,0.063]
[1745249768990,46.11857022,138.8,138.79,0.063]
[1745249769806,46.14216157,138.78,138.74,0.063]
[1745249769990,76.14216157,138.78,138.74,0.063]
[1745249770184,82.6763165,138.78,138.74,0.063]
[1745249770390,89.91920711,138.78,138.74,0.063]
[1745249772683,82.53415493,138.78,138.74,0.063]
[1745249772888,82.53415493,138.78,138.74,0.533]
[1745249773088,82.53415493,138.78,138.74,0.063]
[1745249773609,20.0,138.76,138.74,0.063]
[1745249773787,50.14216157,138.76,138.74,0.063]
[1745249774111,56.6763165,138.76,138.74,0.063]
[1745249774312,83.26256536,138.76,138.74,0.063]
[1745249774610,64.6129165,138.76,138.74,0.063]
[1745249774907,50.0,138.76,138.74,0.533]
[1745249775409,50.0,138.76,138.74,0.063]
[1745249775410,20.0,138.76,138.74,0.063]
[1745249775592,20.14216157,138.76,138.74,0.063]
[1745249775787,26.69170648,138.76,138.74,0.063]
[1745249776399,56.69170648,138.76,138.74,0.063]
[1745249776604,79.8426694,138.76,138.74,0.063]
[1745249777309,87.7792694,138.76,138.74,0.063]
[1745249778118,69.12962054,138.76,138.74,0.063]
[1745249780003,61.05085897,138.76,138.74,0.533]
[1745249780210,50.0,138.76,138.75,16.433]
[1745249781799,50.14216157,138.76,138.75,15.963]
[1745249782022,50.14216157,138.76,138.75,0.063]
[1745249782023,58.48531178,138.76,138.75,0.063]
[1745249782208,32.98662584,138.76,138.75,0.063]
[1745249782391,52.1662747,138.76,138.75,0.063]
[1745249783427,82.1662747,138.76,138.75,0.063]
[1745249784028,81.6362747,138.76,138.75,0.063]
[1745249784201,38.64964886,138.74,138.73,0.063]
[1745249784549,39.32181043,138.74,138.73,0.063]
[1745249784699,43.82312449,138.74,138.73,0.063]
[1745249785422,24.64347563,138.74,138.73,0.063]
[1745249785948,20.14216157,138.74,138.73,0.063]
[1745249786249,20.0,138.74,138.73,0.063]
[1745249786453,20.14216157,138.74,138.73,0.063]
[1745249786745,20.0,138.74,138.73,0.063]
[1745249786938,20.14216157,138.74,138.73,0.063]
[1745249788421,20.0,138.74,138.73,0.063]
[1745249790234,20.0,138.74,138.73,0.533]
[1745249792734,20.0,138.74,138.73,19.18264886]
[1745249793823,20.0,138.74,138.73,99.88264886]
[1745249794020,0.03,138.83,138.73,106.01794886]
[1745249794236,20.0,138.78,138.77,0.47]
[1745249794421,20.0,138.78,138.77,117.29974886]
[1745249795634,20.0,138.78,138.77,115.71964886]
[1745249796145,20.0,138.78,138.77,158.86964886]
[1745249796323,20.0,138.78,138.77,115.71964886]
[1745249800955,20.0,138.78,138.77,97.07]
[1745249801666,20.0,138.78,138.77,16.37]
[1745249801841,50.14216157,138.78,138.77,16.37]
[1745249802234,50.0,138.78,138.77,16.37]
[1745249803561,50.14216157,138.78,138.77,16.37]
[1745249804459,50.14216157,138.78,138.77,15.9]
[1745249804827,20.0,138.74,138.73,16.433]
[1745249808058,20.14216157,138.74,138.73,15.963]
[1745249810470,30.47938013,138.74,138.73,15.963]
[1745249812656,28.77371856,138.74,138.73,15.963]
[1745249812860,20.0,138.74,138.73,15.963]
[1745249813061,20.0,138.74,138.73,16.433]
[1745249814066,20.14216157,138.74,138.73,15.88]
[1745249814274,0.14216157,138.73,138.72,0.2394838]
[1745249814959,46.14216157,138.72,138.71,0.3024838]
[1745249816367,46.14216157,138.72,138.71,0.063]
[1745249816663,46.14216157,138.72,138.71,0.3024838]
[1745249816968,46.14216157,138.72,138.71,0.063]
[1745249817167,46.14216157,138.72,138.71,0.3024838]
[1745249817348,46.14216157,138.72,138.71,0.063]
[1745249819052,46.14216157,138.72,138.71,0.3024838]
[1745249820343,46.0,138.72,138.71,0.3024838]
[1745249820546,20.0,138.72,138.71,99.65213266]
[1745249822392,20.0,138.72,138.71,142.80213266]
[1745249822598,20.0,138.72,138.69,0.063]
[1745249822874,20.14216157,138.62,138.61,0.063]
[1745249823045,43.81395249,138.62,138.61,0.063]
[1745249823250,50.9308431,138.62,138.61,0.063]
[1745249823551,32.28119424,138.62,138.61,0.063]
[1745249824476,20.0,138.55,138.54,15.96617383]
[1745249829565,20.0,138.55,138.54,34.61582269]
[1745249831272,20.0,138.55,138.54,15.96617383]
[1745249837283,46.0,138.55,138.54,15.96617383]
[1745249837495,26.0,138.55,138.54,77.95582269]
[1745249837699,20.0,138.6,138.59,0.08617383]
[1745249837891,46.0,138.6,138.59,96.66617383]
[1745249838076,20.0,138.6,138.59,115.31582269]
[1745249840392,26.0,138.62,138.61,0.08617383]
[1745249840393,46.0,138.62,138.61,0.08617383]
[1745249843401,57.17728349,138.62,138.61,0.08617383]
[1745249843578,57.31944506,138.62,138.61,0.08617383]
[1745249843776,63.75229706,138.62,138.61,0.08617383]
[1745249844374,20.14216157,138.6,138.59,15.96617383]
[1745249844886,31.31944506,138.6,138.59,15.96617383]
[1745249845800,37.75229706,138.6,138.59,15.96617383]
[1745249846097,20.0,138.54,138.53,80.7]
[1745249846285,20.0,138.54,138.53,15.88]
[1745249858505,20.0,138.54,138.53,34.52964886]
[1745249858689,46.0,138.54,138.53,34.52964886]
[1745249860612,46.0,138.54,138.53,115.22964886]
[1745249861294,46.0,138.54,138.53,158.56964886]
[1745249863710,46.0,138.54,138.53,115.22964886]
[1745249871704,46.0,138.54,138.53,158.56964886]
[1745249874412,20.0,138.58,138.56,18.64964886]
[1745249874582,20.0,138.58,138.57,62.98964886]
[1745249874781,20.0,138.6,138.58,1.0]
[1745249875007,20.0,138.6,138.59,78.86964886]
[1745249875210,20.0,138.6,138.59,326.56964886]
[1745249876523,20.0,138.6,138.59,407.26964886]
[1745249876691,20.0,138.6,138.59,407.41181043]
[1745249878211,20.0,138.6,138.59,406.26964886]
[1745249878712,20.0,138.6,138.59,407.26964886]
[1745249879017,20.0,138.6,138.59,406.26964886]
[1745249879315,20.0,138.6,138.59,407.26964886]
[1745249879719,20.0,138.6,138.59,406.26964886]
[1745249880095,20.0,138.6,138.59,407.26964886]
[1745249880594,20.0,138.6,138.59,407.41181043]
[1745249880794,26.0,138.63,138.59,407.41181043]
[1745249880795,20.0,138.62,138.61,61.98964886]
[1745249881010,20.0,138.62,138.61,142.68964886]
[1745249881394,20.0,138.62,138.61,143.83181043]
[1745249881594,0.03,138.66,138.64,19.64964886]
[1745249881892,26.03,138.65,138.64,139.56964886]
[1745249882089,26.03,138.65,138.64,138.56964886]
[1745249883404,0.03,138.65,138.64,139.71181043]
[1745249883816,0.03,138.65,138.64,146.92473599]
[1745249884415,0.03,138.65,138.64,154.53123599]
[1745249887025,20.0,138.69,138.68,79.28964886]
[1745249888839,26.0,138.7,138.69,18.64964886]
[1745249889127,11.20728349,138.71,138.69,18.64964886]
[1745249889128,0.03,138.71,138.7,70.34161576]
[1745249889304,0.03,138.71,138.7,310.61181043]
[1745249890213,0.03,138.71,138.7,326.47181043]
[1745249892933,20.03,138.74,138.73,79.22964886]
[1745249894228,26.03,138.74,138.73,79.22964886]
[1745249895115,46.03,138.74,138.73,79.22964886]
[1745249896307,46.03,138.74,138.73,138.42964886]
[1745249897136,46.88608171,138.74,138.73,76.44]
[1745249898017,76.88608171,138.74,138.73,76.44]
[1745249899812,76.03,138.74,138.73,95.08964886]
[1745249902530,50.03,138.74,138.73,138.42964886]
[1745249902830,30.03,138.74,138.73,138.42964886]
[1745249903216,50.03,138.74,138.73,138.42964886]
[1745249903416,20.03,138.74,138.73,138.42964886]
[1745249904117,50.03,138.74,138.73,95.08964886]
[1745249904318,59.92079594,138.74,138.73,95.08964886]
[1745249906038,76.03,138.74,138.73,138.42964886]
[1745249906213,50.03,138.74,138.73,138.42964886]
[1745249906923,76.03,138.74,138.73,138.42964886]
[1745249908236,46.03,138.74,138.73,138.42964886]
[1745249910726,7.43433314,138.78,138.75,18.64964886]
[1745249910926,9.89079594,138.77,138.75,18.64964886]
[1745249912648,46.0,138.76,138.75,18.64964886]
[1745249912826,47.89349085,138.76,138.74,14.55]
[1745249913030,10.05928349,138.75,138.74,30.39]
[1745249913340,11.95277434,138.75,138.74,30.39]
[1745249914457,19.73443591,138.75,138.74,28.7234]
[1745249914622,49.73443591,138.75,138.74,27.0568]
[1745249914943,20.0,138.71,138.7,263.32]
[1745249915319,31.95277434,138.71,138.7,263.32]
[1745249915836,31.95277434,138.71,138.7,15.84]
[1745249917169,61.95277434,138.71,138.7,15.84]
[1745249920234,60.05928349,138.71,138.7,15.84]
[1745249930074,30.0,138.71,138.7,116.76354886]
[1745249930249,30.0,138.71,138.7,160.10354886]
[1745249930442,26.0,138.73,138.72,61.98964886]
[1745249930640,20.0,138.77,138.72,61.98964886]
[1745249930973,31.17273789,138.77,138.72,360.12964886]
[1745249931176,26.0,138.74,138.72,360.12964886]
[1745249940377,26.0,138.74,138.73,77.82964886]
[1745249940559,26.0,138.76,138.75,61.98964886]
[1745249940875,26.0,138.76,138.75,112.68964886]
[1745249944174,20.0,138.77,138.75,94.04]
[1745249944385,20.0,138.77,138.76,18.64964886]
[1745249945856,26.0,138.77,138.76,69.34964886]
[1745249946374,26.0,138.77,138.76,112.68964886]
[1745249947858,46.0,138.77,138.76,69.34964886]
[1745249948289,56.05928349,138.77,138.76,69.34964886]
[1745249948779,20.0,138.75,138.74,69.34964886]
[1745249948962,20.0,138.75,138.73,66.54]
[1745249949470,11.06904791,138.74,138.73,15.84]
[1745249950787,11.06904791,138.74,138.73,6.82815774]
[1745249953696,11.06904791,138.74,138.73,6.82815774]
[1745249953875,41.06904791,138.74,138.73,6.82815774]
[1745249954081,38.0085652,138.74,138.73,6.82815774]
[1745249954768,8.0085652,138.74,138.73,6.82815774]
[1745249956071,14.12953062,138.74,138.73,6.82815774]
[1745249956790,8.0085652,138.74,138.73,6.82815774]
[1745249958466,12.37685968,138.74,138.73,6.82815774]
[1745249963604,42.51902125,138.74,138.73,6.82815774]
[1745249964474,20.0,138.68,138.67,50.763]
[1745249964690,26.12633446,138.68,138.67,0.063]
[1745249964890,30.49462894,138.68,138.67,0.063]
[1745249965482,20.0,138.68,138.67,18.71264886]
[1745249966298,20.0,138.68,138.67,62.05264886]
[1745249969278,20.0,138.68,138.67,112.75264886]
[1745249970477,46.0,138.68,138.67,112.75264886]
[1745249970773,26.0,138.68,138.67,112.75264886]
[1745249971305,6.1437,138.75,138.67,112.75264886]
[1745249971306,20.0,138.74,138.69,61.98964886]
[1745249971510,20.0,138.74,138.69,112.68964886]
[1745249971796,26.0,138.71,138.69,112.68964886]
[1745249972903,26.0,138.73,138.7,0.14216157]
[1745249973200,26.0,138.73,138.72,61.98964886]
[1745249973499,26.0,138.73,138.72,112.68964886]
[1745249975286,10.05928349,138.73,138.72,94.04]
[1745249976078,10.05928349,138.73,138.72,50.7]
[1745249976498,13.118441,138.73,138.72,50.7]
[1745249976803,46.0,138.72,138.71,15.84]
[1745249977102,59.118441,138.72,138.71,15.84]
[1745249982786,56.05928349,138.72,138.71,85.18964886]
[1745249984114,56.05928349,138.72,138.71,66.54]
[1745249986710,56.05928349,138.72,138.71,109.88]
[1745249986914,56.05928349,138.72,138.71,128.52964886]
[1745249987096,20.0,138.72,138.71,130.03444886]
[1745249987412,46.0,138.72,138.71,127.60809091]
[1745249988423,20.0,138.72,138.71,127.60809091]
[1745249988713,46.0,138.74,138.73,43.34]
[1745249989013,46.0,138.74,138.73,112.68964886]
[1745249989211,20.0,138.74,138.73,112.68964886]
[1745249989416,20.0,138.76,138.75,61.98964886]
[1745249989608,20.0,138.76,138.75,77.82964886]
[1745249989609,46.0,138.76,138.75,77.82964886]
[1745249990613,20.0,138.76,138.75,77.82964886]
[1745249990813,30.05928349,138.76,138.75,77.82964886]
[1745249991019,30.05928349,138.76,138.75,34.48964886]
[1745249992233,30.05928349,138.76,138.75,15.84]
[1745250000929,30.05928349,138.76,138.75,34.48964886]
[1745250001232,30.05928349,138.76,138.75,15.84]
[1745250003615,30.05928349,138.76,138.75,85.18964886]
[1745250005539,30.05928349,138.76,138.75,15.84]
[1745250005717,33.118441,138.76,138.75,15.84]
[1745250007138,33.26060257,138.76,138.75,15.84]
[1745250007312,46.0,138.7,138.69,18.64964886]
[1745250007507,46.0,138.7,138.69,85.16964886]
[1745250009237,46.0,138.7,138.69,128.50964886]
[1745250010148,20.0,138.72,138.7,0.14216157]
[1745250010341,46.0,138.72,138.71,61.98964886]
[1745250013342,46.0,138.72,138.71,112.68964886]
[1745250014836,26.0,138.72,138.71,112.83181043]
[1745250015231,26.0,138.72,138.71,360.19181043]
[1745250018128,46.0,138.72,138.71,316.70964886]
[1745250018354,56.05928349,138.72,138.71,298.06]
[1745250018654,59.118441,138.72,138.71,247.36]
[1745250019625,59.118441,138.72,138.71,238.34756309]
[1745250021958,20.0,138.7,138.69,15.82]
[1745250023749,30.05928349,138.7,138.69,15.82]
[1745250024120,35.39674183,138.7,138.69,15.82]
[1745250025237,65.39674183,138.7,138.69,15.82]
[1745250035579,65.5389034,138.7,138.69,15.82]
[1745250035955,46.0,138.68,138.67,0.063]
[1745250036269,61.39674183,138.68,138.67,0.063]
[1745250037069,91.39674183,138.68,138.67,0.063]
[1745250038858,91.5389034,138.68,138.67,0.063]
[1745250043180,97.6408034,138.68,138.67,0.063]
[1745250044387,91.39674183,138.68,138.67,0.063]
[1745250046903,50.0,138.68,138.67,79.48174886]
[1745250047191,20.0,138.7,138.69,43.34]
[1745250047486,20.0,138.7,138.69,124.04]
[1745250049186,20.0,138.7,138.69,80.7]
[1745250049374,30.05928349,138.7,138.69,80.7]
[1745250055110,30.05928349,138.7,138.69,99.34964886]
[1745250055310,20.0,138.7,138.69,142.68964886]
[1745250055510,0.03,138.76,138.71,61.98964886]
[1745250055511,20.0,138.72,138.71,61.98964886]
[1745250055709,20.0,138.74,138.73,63.57544886]
[1745250056040,46.0,138.74,138.73,160.07544886]
[1745250056319,20.0,138.74,138.73,160.07544886]
[1745250057502,20.0,138.74,138.73,116.73544886]
[1745250062141,0.03,138.76,138.75,18.64964886]
[1745250062318,0.03,138.76,138.75,68.33661043]
[1745250062623,0.03,138.76,138.75,69.33661043]
[1745250062800,0.03,138.76,138.75,68.19444886]
[1745250062801,26.03,138.76,138.75,68.19444886]
[1745250063004,26.03,138.76,138.75,68.33661043]
[1745250063315,0.03,138.77,138.76,0.14216157]
[1745250063516,0.03,138.77,138.76,370.21181043]
[1745250064530,0.03,138.77,138.76,370.06964886]
[1745250065234,20.03,138.77,138.76,326.72964886]
[1745250066010,26.03,138.77,138.76,370.06964886]
[1745250067539,26.03,138.77,138.76,385.86964886]
[1745250068643,46.03,138.77,138.76,385.86964886]
[1745250069021,46.03,138.77,138.76,263.18]
[1745250069224,51.67326913,138.77,138.76,263.18]
[1745250070329,54.73242664,138.77,138.76,263.18]
[1745250070733,25.67326913,138.77,138.76,263.18]
[1745250071057,46.03,138.77,138.76,263.18]
[1745250071723,20.03,138.77,138.76,263.18]
[1745250071916,46.03,138.77,138.76,263.18]
[1745250072134,20.03,138.77,138.76,263.18]
[1745250072443,46.03,138.77,138.76,263.18]
[1745250072642,46.03,138.77,138.76,15.8]
[1745250073329,20.03,138.77,138.76,15.8]
[1745250074235,46.03,138.77,138.76,15.8]
[1745250074456,28.0385652,138.77,138.76,15.8]
[1745250074618,31.09772271,138.77,138.76,15.8]
[1745250075028,20.0,138.71,138.7,247.32]
[1745250075237,20.0,138.71,138.7,263.12]
[1745250081453,10.05928349,138.76,138.71,18.64964886]
[1745250081454,20.0,138.73,138.71,18.64964886]
[1745250081627,20.0,138.73,138.71,79.34964886]
[1745250082747,20.0,138.75,138.71,122.68964886]
[1745250082932,10.05928349,138.76,138.73,61.98964886]
[1745250083134,0.03,138.77,138.74,0.14216157]
[1745250083440,0.03,138.77,138.76,61.98964886]
[1745250083647,30.03,138.77,138.76,130.49181043]
[1745250084028,0.03,138.77,138.76,130.49181043]
[1745250084230,0.03,138.77,138.76,129.49181043]
[1745250084534,0.03,138.77,138.76,130.49181043]
[1745250085532,0.03,138.77,138.76,129.49181043]
[1745250085752,26.03,138.77,138.76,122.68964886]
[1745250087040,46.03,138.77,138.76,79.34964886]
[1745250088139,26.03,138.77,138.76,79.34964886]
[1745250088539,46.03,138.77,138.76,79.34964886]
[1745250093439,26.03,138.77,138.76,79.34964886]
[1745250094051,26.03,138.77,138.76,122.83181043]
[1745250094249,0.03,138.77,138.76,123.83181043]
[1745250097162,26.03,138.78,138.77,122.80181043]
[1745250097460,0.03,138.78,138.77,124.45931043]
[1745250097637,0.03,138.78,138.77,125.45931043]
[1745250099252,0.03,138.79,138.78,63.13181043]
[1745250099444,0.03,138.79,138.78,64.57195963]
[1745250099943,0.03,138.79,138.78,63.13181043]
[1745250103652,0.03,138.79,138.78,62.13181043]
[1745250103858,0.03,138.79,138.78,138.43964886]
[1745250106160,0.03,138.79,138.78,95.09964886]
[1745250106866,0.03,138.79,138.78,138.43964886]
[1745250106867,26.03,138.79,138.78,138.43964886]
[1745250107575,46.03,138.79,138.78,138.43964886]
[1745250107746,46.03,138.79,138.78,119.79]
[1745250111247,46.03,138.79,138.78,76.45]
[1745250116953,56.08928349,138.79,138.78,15.78]
[1745250121876,60.85140257,138.79,138.78,15.78]
[1745250122490,67.00850257,138.79,138.78,15.78]
[1745250122694,20.0,138.75,138.74,247.32]
[1745250123166,30.05928349,138.75,138.74,247.32]
[1745250124092,30.20144506,138.75,138.73,15.76]
[1745250124397,13.118441,138.74,138.73,15.76]
[1745250125172,20.0,138.75,138.74,18.64964886]
[1745250128609,20.0,138.75,138.73,119.77]
[1745250128900,20.0,138.75,138.74,18.64964886]
[1745250130603,20.0,138.75,138.74,79.31964886]
[1745250132506,26.0,138.75,138.74,122.65964886]
[1745250132707,26.0,138.75,138.74,122.80181043]
[1745250133006,46.0,138.75,138.74,138.41964886]
[1745250134300,46.0,138.75,138.74,76.43]
[1745250135615,46.0,138.75,138.74,95.07964886]
[1745250136828,46.0,138.75,138.74,76.43]
[1745250141621,46.0,138.75,138.74,95.07964886]
[1745250143817,26.0,138.75,138.74,95.07964886]
[1745250146829,26.0,138.75,138.74,138.33964886]
[1745250148020,46.0,138.75,138.74,119.69]
[1745250148199,55.86915657,138.75,138.74,15.76]
[1745250153119,46.0,138.75,138.74,138.33964886]
[1745250153317,20.0,138.75,138.74,138.33964886]
[1745250153526,46.0,138.75,138.74,138.33964886]
[1745250154427,20.0,138.75,138.74,138.33964886]
[1745250155925,20.0,138.75,138.74,95.07964886]
[1745250156127,20.0,138.75,138.74,76.43]
[1745250156529,20.0,138.75,138.74,15.76]
[1745250157535,29.86915657,138.75,138.74,15.76]
[1745250158424,29.86915657,138.75,138.72,60.733]
[1745250158425,20.0,138.73,138.72,60.733]
[1745250158730,29.86915657,138.73,138.72,15.823]
[1745250168548,33.07047565,138.73,138.72,0.063]
[1745250172158,63.07047565,138.73,138.72,0.063]
[1745250172650,70.66287565,138.73,138.72,0.063]
[1745250172859,71.66287565,138.73,138.72,0.063]
[1745250173360,20.14216157,138.71,138.7,0.063]
[1745250173658,27.57358916,138.71,138.7,0.063]
[1745250173843,37.42735575,138.71,138.7,0.063]
[1745250175044,67.42735575,138.71,138.7,0.063]
[1745250175243,86.07700461,138.71,138.7,0.063]
[1745250178672,67.28519418,138.71,138.7,0.063]
[1745250179561,67.42735575,138.71,138.7,0.063]
[1745250181674,86.07700461,138.71,138.7,0.063]
[1745250181887,87.07700461,138.71,138.7,0.063]
[1745250183583,86.07700461,138.71,138.7,0.063]
[1745250183764,67.42735575,138.71,138.7,0.063]
[1745250186902,67.28519418,138.71,138.7,0.063]
[1745250187608,50.0,138.71,138.7,0.063]
[1745250187787,20.0,138.71,138.7,0.063]
[1745250188582,30.40771768,138.71,138.7,0.063]
[1745250192503,33.60903676,138.71,138.7,0.063]
[1745250194087,33.46687519,138.71,138.7,0.063]
[1745250198028,30.40771768,138.71,138.7,24.90524886]
[1745250198207,30.40771768,138.71,138.7,85.57524886]
[1745250198726,20.0,138.71,138.7,85.57524886]
[1745250199010,46.0,138.71,138.7,87.15154886]
[1745250199892,46.0,138.71,138.7,130.41154886]
[1745250200298,20.0,138.73,138.72,61.90964886]
[1745250200513,26.0,138.73,138.72,122.57964886]
[1745250200690,24.3334,138.73,138.72,124.29811043]
[1745250201306,22.6668,138.73,138.72,124.29811043]
[1745250202703,22.6668,138.73,138.72,124.15594886]
[1745250204209,22.6668,138.73,138.72,80.89594886]
[1745250204424,42.6668,138.73,138.72,80.89594886]
[1745250205541,42.6668,138.73,138.72,328.31594886]
[1745250205931,42.6668,138.73,138.72,247.42]
[1745250206131,42.6668,138.73,138.72,263.14]
[1745250207336,42.6668,138.73,138.72,281.78964886]
[1745250208639,20.0,138.75,138.73,18.64964886]
[1745250208811,20.03,138.78,138.74,0.14216157]
[1745250209011,26.0,138.76,138.75,18.64964886]
[1745250210330,26.0,138.76,138.75,18.79181043]
[1745250210540,20.03,138.78,138.75,18.64964886]
[1745250210726,46.03,138.78,138.75,20.21614886]
[1745250211640,46.03,138.78,138.77,61.90964886]
[1745250211820,46.03,138.78,138.77,138.29964886]
[1745250216106,20.03,138.78,138.77,95.03964886]
[1745250216312,20.03,138.78,138.77,15.72]
[1745250220211,26.6610256,138.78,138.77,15.72]
[1745250220524,55.86234468,138.78,138.77,15.72]
[1745250220729,29.86234468,138.78,138.77,15.72]
[1745250221744,55.86234468,138.78,138.77,15.72]
[1745250222031,29.86234468,138.78,138.77,15.72]
[1745250226740,55.72018311,138.78,138.77,15.72]
[1745250226925,29.72018311,138.78,138.77,15.72]
[1745250228440,29.86234468,138.78,138.77,15.72]
[1745250228939,55.86234468,138.78,138.77,15.72]
[1745250229341,29.86234468,138.78,138.77,15.72]
[1745250229726,55.86234468,138.78,138.77,15.72]
[1745250230244,29.86234468,138.78,138.77,15.72]
[1745250231224,29.72018311,138.78,138.77,15.72]
[1745250231426,55.72018311,138.78,138.77,15.72]
[1745250231634,52.6610256,138.78,138.77,15.72]